[Event "44th Chess Olympiad Women 2022"]
[Site "Chennai"]
[Date "2022.08.07"]
[Round "9.44"]
[White "Rosario Almanzar, Raydily"]
[Black "Kannappan, Sigappi"]
[Result "1/2-1/2"]
[ECO "E73"]
[WhiteElo "1882"]
[BlackElo "1914"]
[Annotator "TA"]
[PlyCount "73"]
[EventDate "2022.07.29"]
[EventType "team-tourn"]
[EventCountry "IND"]
[SourceTitle "playchess.com"]
[Source "ChessBase"]
[SourceQuality "1"]
[WhiteTeam "Dominican Republic"]
[BlackTeam "Hong Kong"]
[WhiteTeamCountry "DOM"]
[BlackTeamCountry "HKG"]
[TimeControl "40/5400+30:1800+30"]

{[%evp 12,73,40,30,52,41,51,39,52,0,33,33,22,22,62,58,77,78,82,71,72,49,79,45,56,31,72,29,56,45,63,63,66,47,24,24,30,7,4,15,39,39,44,0,64,60,83,91,158,152,147,126,340,317,315,13,0,47,0,39,36,29,39,45]} 1. d4 {[%emt 0:00:55]} Nf6 {[%emt 0:00:06]} 2. c4 {[%emt 0:00:03]} g6 {[%emt 0:00:03]} 3. Nc3 {[%emt 0:00:03]} Bg7 {[%emt 0:00:05]} 4. e4 {[%emt 0:00:15]} d6 {[%emt 0:00:04]} 5. Be2 {[%emt 0:00:15]} O-O {[%emt 0:00:20]} 6. h4 {[%emt 0:02:28]} h5 {[%emt 0:06:14]} 7. Bg5 {[%emt 0:01:07]} Nbd7 {[%emt 0:06:39] E73: King's Indian: Averbakh Variation without 6...c5.} 8. Qd2 {[%emt 0:05:45]} c5 {[%emt 0:04:41]} 9. d5 {[%emt 0:00:48]} a6 {[%emt 0:03:38]} 10. f3 {[%emt 0:02:29]} (10. Nf3 $14) 10... Rb8 {[%emt 0:03:57]} 11. Nh3 {[%emt 0:02:33][%cal Bg1h3,Bh3f2,Bf2d3][%mdl 32]} Ne5 {[%emt 0:06:12]} 12. Nf2 {[%emt 0:07:54]} Bd7 {[%emt 0:07:59]} 13. a4 $1 {[%emt 0:18:07] [#] Prevents b5.} Qe8 $146 {[%emt 0:07:01]} ({Predecessor:} 13... Qa5 14. O-O Qb4 15. Qc2 Qa5 16. Rfe1 Rfe8 17. Bd2 Qc7 18. f4 Neg4 19. Nd3 Nh7 {1-0 (37) Golichenko,I (2283)-Korniyuk,M Kiev 2005}) 14. O-O {[%emt 0:05:08]} Qd8 {[%emt 0:07:42]} 15. Rfc1 {[%emt 0:09:56]} Re8 {[%emt 0:06:19]} 16. b3 {[%emt 0:02:17]} Qa5 {[%emt 0:02:35]} 17. Nd3 {[%emt 0:04:02]} Nh7 {[%emt 0:01:01]} 18. Be3 {[%emt 0:01:26]} Nxd3 {[%emt 0:01:57]} 19. Qxd3 {[%emt 0:06:30]} Bf6 {[%emt 0:02:59]} 20. Bf2 {[%emt 0:01:25]} (20. g3 {with more complications.} Be5 21. Kg2 Nf6 22. Qd2) 20... Rec8 {[%emt 0:00:37]} 21. Ra2 {[%emt 0:08:42]} Qd8 {[%emt 0:00:35]} 22. Re1 {[%emt 0:05:13]} Qf8 {[%emt 0:00:30]} 23. Bf1 {[%emt 0:03:19]} Qg7 {[%emt 0:00:28]} 24. Rc2 {[%emt 0:02:38]} g5 {[%emt 0:00:40]} 25. hxg5 {[%emt 0:01:53]} Nxg5 {[%emt 0:00:56] [#] White must now prevent ...Nh3+.} 26. Kh1 {[%emt 0:01:20]} Be5 {[%emt 0:00:55][%cal Of7f5]} 27. Ne2 {[%emt 0:01:27] Strongly threatening f4.} (27. Qd2 $5 {[%cal Rf3f4]}) 27... Qg6 {[%emt 0:10:07]} (27... f5 $1 $11) 28. Qe3 $1 $14 {[%emt 0:04:00]} Bg7 {[%emt 0:03:30]} 29. Bh4 {[%emt 0:01:06]} Bh6 {[%emt 0:00:25]} ({Better is} 29... f6) 30. Nf4 $16 {[%emt 0:00:32]} Qh7 {[%emt 0:01:19]} 31. Bd3 {[%emt 0:00:25] White is more active.} ({Don't do} 31. Nxh5 Ne6 32. Qf2 Nd4 $14) 31... f5 $2 {[%emt 0:06:57] [#]} (31... e5 $16 {might work better.}) 32. exf5 $18 {[%emt 0:00:34]} ({Weaker is} 32. Nxh5 Nxe4 33. Qe2 Bg5 34. fxe4 Bxh4 $16) 32... Bxf5 {[%emt 0:00:08]} 33. Bxg5 {[%emt 0:00:54]} ({Inferior is} 33. Qxe7 Bxd3 34. Nxd3 Qxd3 $17) (33. g4 $18 Bxd3 34. Rg2 hxg4 35. Nxd3) 33... Bxg5 $11 {[%emt 0:00:24]} 34. Bxf5 {[%emt 0:00:09]} (34. Qe6+ $11 Bxe6 35. Bxh7+ Kxh7 36. Nxe6) 34... Qxf5 $14 {[%emt 0:00:06]} 35. Qe6+ {[%emt 0:00:13]} Qxe6 {[%emt 0:01:25]} 36. Nxe6 {[%emt 0:00:08]} Bf6 {[%emt 0:00:46]} 37. Nf4 {[%emt 0:00:26] Weighted Error Value: White=0.29 (precise) /Black=0.24 (precise)} 1/2-1/2

[Event "44th Chess Olympiad Women 2022"]
[Site "Chennai"]
[Date "2022.08.07"]
[Round "9.47"]
[White "Blackman, Katrina"]
[Black "Enomah Emmanuella Trust"]
[Result "0-1"]
[ECO "A03"]
[WhiteElo "1691"]
[BlackElo "1901"]
[Annotator "TA"]
[PlyCount "84"]
[EventDate "2022.07.29"]
[EventType "team-tourn"]
[EventCountry "IND"]
[SourceTitle "playchess.com"]
[Source "ChessBase"]
[SourceQuality "1"]
[WhiteTeam "Barbados"]
[BlackTeam "Nigeria"]
[WhiteTeamCountry "BAR"]
[BlackTeamCountry "NGR"]
[TimeControl "40/5400+30:1800+30"]

{[%evp 9,83,-5,44,23,20,21,32,22,18,-35,-35,-38,-18,-42,-26,-36,-21,-51,-40,-40,-39,-56,-66,-58,-53,-60,-24,-50,41,35,36,0,0,-20,0,-118,-124,-116,-111,-116,-133,-152,-137,-143,-91,-321,-313,-278,-104,-100,-45,-142,-114,-116,-118,-491,-475,-477,-438,-411,-410,-409,-399,-898,-328,-522,-385,-6107,-1818,-1715,-1159,-29968,-29969,-29998,-29999,-29999]} 1. e3 {[%emt 0:00:09]} c5 {[%emt 0:01:57]} 2. f4 {[%emt 0:00:13]} d5 {[%emt 0:00:35]} 3. Nf3 {[%emt 0:00:03]} Nc6 {[%emt 0:01:29]} 4. Bb5 {[%emt 0:01:23]} Qb6 {[%emt 0:02:37]} 5. Bxc6+ {[%emt 0:06:20]} bxc6 {[%emt 0:00:43]} (5... Qxc6 $11 {should be considered.} 6. O-O f6) 6. O-O {[%emt 0:04:27][%cal Oc2c4] [#] A03: Bird's Opening with 1...d5.} Ba6 $146 {[%emt 0:00:32]} ({Predecessor:} 6... g6 7. b3 Bg7 8. Ne5 f6 9. Nf3 Nh6 10. Bb2 O-O 11. Qe2 Ba6 12. d3 c4 {0-1 (35) Esipenko,A (2026)-Gochelashvili,D (2416) Tuapse 2021}) 7. Re1 {[%emt 0:00:03]} Nf6 {[%emt 0:00:05]} 8. d3 {[%emt 0:04:26] White is slightly better.} e6 {[%emt 0:00:47]} 9. Kh1 {[%emt 0:01:28]} ({White should try} 9. b3 $11) 9... c4 $15 {[%emt 0:05:20]} 10. Nc3 {[%emt 0:01:35]} Be7 {[%emt 0:01:01]} 11. Ne5 {[%emt 0:02:08]} cxd3 {[%emt 0:00:43]} 12. cxd3 {[%emt 0:00:45]} O-O {[%emt 0:01:10]} 13. b3 {[%emt 0:10:47]} Rfd8 {[%emt 0:03:59]} 14. Bb2 {[%emt 0:00:46]} c5 {[%emt 0:01:57]} 15. Ne2 {[%emt 0:04:17]} Rac8 {[%emt 0:03:17]} 16. Rc1 {[%emt 0:02:24]} Bd6 {[%emt 0:00:56] aiming for ...Bxe5.} 17. Ng3 {[%emt 0:00:00]} Bb7 {[%emt 0:17:28]} 18. Ng4 {[%emt 0:07:53]} Nxg4 {[%emt 0:04:51]} ({Better is} 18... Ne8 $1 $15) 19. Qxg4 $14 {[%emt 0:00:03][%csl Gb2][%cal Rg4g7]} d4 {[%emt 0:00:26]} 20. exd4 {[%emt 0:08:01]} (20. Nh5 $5 {[%cal Rg4g7]} Bf8 21. exd4 cxd4 22. Ba3 $1 $16) 20... cxd4 {[%emt 0:00:10]} 21. f5 {[%emt 0:00:42]} Rxc1 {[%emt 0:05:32]} 22. Rxc1 {[%emt 0:00:26]} (22. Bxc1 $11 {was the only way to keep the balance.} Qa5 23. Rg1) 22... e5 $1 $17 {[%emt 0:01:09]} 23. f6 {[%emt 0:02:05][%csl Gf6][%cal Rg4g7]} g6 {[%emt 0:00:58] Hoping for ...Qa6.} 24. Nf5 {[%emt 0:00:02]} Bf8 {[%emt 0:00:52] This bishop pair is nice.} 25. Ne7+ {[%emt 0:04:49]} Kh8 {[%emt 0:00:35]} 26. Qg5 {[%emt 0:02:41]} Qa5 {[%emt 0:02:33]} (26... Qb5 $142 27. Rg1 h6 28. Nxg6+ fxg6 29. Qxg6 e4 30. dxe4 (30. f7 $2 Qg5 $19) 30... Qd3) 27. a4 $2 {[%emt 0:13:32]} (27. h4 $17) 27... h6 $1 $19 {[%emt 0:02:00]} 28. Qg3 {[%emt 0:00:52]} Qd2 $2 {[%emt 0:01:00]} (28... Rd6 $1 $19 29. Qf2 Qb6) 29. Ba3 $17 {[%emt 0:00:55] [#]} Kh7 {[%emt 0:10:07]} (29... h5 $1 $17 {Threatens to win with ...Kh7.} 30. Rg1 Qe3 31. Nxg6+ fxg6 32. Bxf8 Qxg3 33. Bg7+ Kh7 34. hxg3 e4) 30. Rg1 {[%emt 0:01:55]} ({White should play} 30. h4 $1 $15) 30... Qa2 $36 {[%emt 0:07:26][%mdl 2048] Black has strong initiative.} 31. Bc5 {[%emt 0:01:40]} Qxb3 {[%emt 0:03:33]} 32. Bxa7 $2 {[%emt 0:00:07][%mdl 8192]} (32. Qxe5 $17 Qxa4 33. Qc7) 32... Qxa4 $19 {[%emt 0:01:52]} 33. Bb6 {[%emt 0:00:02]} Rd6 {[%emt 0:01:06][%csl LRb6,LRf6]} 34. Bc5 {[%emt 0:04:53]} Rxf6 {[%emt 0:07:13]} 35. Qxe5 {[%emt 0:01:18]} Re6 {[%emt 0:01:22]} 36. Qc7 {[%emt 0:00:19] [#]} (36. Qf4 Qe8 37. Rf1) 36... Qa6 $2 {[%emt 0:03:04]} (36... Bxg2+ $1 {[%mdl 512]} 37. Kxg2 Qa8+ 38. Kh3 Qf3+ 39. Qg3 Qh5+ 40. Kg2 Qxc5) 37. Nf5 {[%emt 0:05:02]} (37. Nc6 $142 Bxc6 38. Qxf7+ Bg7 39. Bxd4) 37... Rf6 {[%emt 0:02:00]} 38. Nxd4 {[%emt 0:00:40]} (38. Ng3 Bxc5 39. Qxc5 Qxd3 40. Qe7) 38... Bxc5 {[%emt 0:00:38]} 39. Qxc5 {[%emt 0:00:03]} Qxd3 {[%emt 0:00:28] ( -> ...Qe3)} 40. Qe5 {[%emt 0:05:38] Prevents Qe3.} Rf1 {[%emt 0:01:42] Black mates.} 41. Ne2 {[%emt 0:31:02] [#]} Bxg2+ $1 {[%emt 0:32:00][%mdl 512]} 42. Kxg2 {[%emt 0:00:19]} Qf3# {[%emt 0:00:03] Weighted Error Value: White=0.86/Black=0.30} 0-1

[Event "44th Chess Olympiad Women 2022"]
[Site "Chennai"]
[Date "2022.08.07"]
[Round "9.49"]
[White "Mwango, Lorita"]
[Black "Tsai, Sophie Yi-Hsuan"]
[Result "1-0"]
[ECO "A10"]
[WhiteElo "1920"]
[BlackElo "1131"]
[Annotator "TA"]
[PlyCount "133"]
[EventDate "2022.07.29"]
[EventType "team-tourn"]
[EventCountry "IND"]
[SourceTitle "playchess.com"]
[Source "ChessBase"]
[SourceQuality "1"]
[WhiteTeam "Zambia"]
[BlackTeam "Taiwan"]
[WhiteTeamCountry "ZAM"]
[BlackTeamCountry "TPE"]
[TimeControl "40/5400+30:1800+30"]

{[%evp 9,133,11,31,15,17,0,28,2,8,-17,-21,-31,-20,-10,11,10,25,-9,12,12,9,11,5,2,63,10,77,12,22,0,28,-16,96,0,33,25,62,41,38,52,87,30,73,12,26,0,0,-16,-9,-17,11,0,0,0,47,0,22,10,25,-10,-4,-24,5,0,0,0,0,-25,412,435,599,441,335,183,713,681,1508,1493,29984,29985,29985,29985,29985,4798,29985,721,807,770,724,715,5410,699,661,635,1110,1019,1703,1634,2197,881,2395,2140,5081,4879,3739,3360,29983,29980,29983,29977,29984,29985,29985,29986,29986,29987,29992,29993,29993,29989,29989,29990,29990,29991,29995,29994]} 1. c4 {[%emt 0:00:12]} f5 {[%emt 0:00:04]} 2. Nc3 {[%emt 0:00:07]} Nf6 {[%emt 0:00:06]} 3. g3 {[%emt 0:00:10]} e6 {[%emt 0:00:17]} 4. Bg2 {[%emt 0:00:18]} Be7 {[%emt 0:00:43]} 5. Qb3 {[%emt 0:00:19] [#]} c6 $146 {[%emt 0:00:28]} ({Predecessor:} 5... Nc6 6. d3 O-O 7. Bxc6 bxc6 8. Nf3 d6 9. d4 Bd7 10. O-O Ne4 11. Qc2 Nxc3 12. bxc3 Qb8 {0-1 (26) Magat,J (2117)-Hrnciar,R (2065) Slovakia 2012}) 6. e3 {[%emt 0:01:01] A10: English Opening: Unusual Replies for Black.} d5 {[%emt 0:01:40]} 7. d4 {[%emt 0:00:25]} Nbd7 {[%emt 0:01:20]} 8. cxd5 {[%emt 0:00:30] White has an edge.} exd5 {[%emt 0:00:29]} 9. Nf3 {[%emt 0:00:37]} Ne4 {[%emt 0:03:02]} 10. a3 {[%emt 0:03:14]} O-O {[%emt 0:01:46]} 11. O-O {[%emt 0:00:15]} Kh8 {[%emt 0:01:26]} 12. Qc2 {[%emt 0:05:48]} Qe8 {[%emt 0:02:19]} 13. b4 {[%emt 0:05:49]} Ndf6 {[%emt 0:01:10]} 14. Ne5 {[%emt 0:01:28]} Nxc3 {[%emt 0:38:45]} 15. Qxc3 {[%emt 0:00:32]} Ne4 {[%emt 0:00:29]} 16. Qc2 {[%emt 0:04:21]} Qh5 {[%emt 0:01:58]} (16... Be6 $11) 17. f3 {[%emt 0:07:53]} (17. b5 $14) 17... Ng5 {[%emt 0:02:08]} (17... Nd6 $11) 18. f4 {[%emt 0:17:26]} (18. b5 $16) 18... Ne4 $11 {[%emt 0:00:40]} 19. Bf3 {[%emt 0:00:48]} Qh6 {[%emt 0:03:06]} 20. Rb1 {[%emt 0:00:30]} g5 {[%emt 0:06:12]} (20... a6 $11) 21. Rb2 {[%emt 0:05:41]} (21. b5 $16) 21... gxf4 {[%emt 0:01:32]} 22. exf4 {[%emt 0:00:45]} Qf6 {[%emt 0:01:36]} 23. Qd3 {[%emt 0:09:29] White is more active.} a6 {[%emt 0:02:29]} 24. Rg2 {[%emt 0:00:14]} Bd6 {[%emt 0:04:04]} 25. Be2 {[%emt 0:09:59]} (25. Bb2 $16) 25... a5 {[%emt 0:01:27]} 26. bxa5 {[%emt 0:05:59]} (26. b5 $16) 26... Rxa5 {[%emt 0:00:14]} 27. Bb2 {[%emt 0:00:29]} Qe7 {[%emt 0:03:25][%cal Rd6a3]} 28. Rf3 {[%emt 0:02:49]} Be6 {[%emt 0:00:27]} 29. Bd1 {[%emt 0:00:20]} Bf7 {[%emt 0:01:36]} 30. Re3 {[%emt 0:01:04]} Rg8 {[%emt 0:01:35]} 31. a4 {[%emt 0:04:29]} h6 {[%emt 0:01:14]} (31... Rg7 $11) 32. h3 {[%emt 0:04:08]} (32. g4 $14 {deserves consideration.} fxg4 33. Bxg4) 32... Kh7 {[%emt 0:00:56]} (32... Bxe5 $5 33. dxe5 Be6 $11) 33. g4 {[%emt 0:00:32]} Be6 {[%emt 0:00:45]} 34. Qe2 {[%emt 0:01:54]} (34. Ba3 $5 {[%cal Ra3d6]}) 34... Bxe5 {[%emt 0:03:59]} 35. fxe5 {[%emt 0:01:56]} Kh8 {[%emt 0:08:42]} (35... Raa8 $5 {[%cal Rf5g4]}) 36. gxf5 {[%emt 0:02:27]} Rxg2+ {[%emt 0:00:18]} 37. Qxg2 {[%emt 0:00:23]} Bxf5 {[%emt 0:00:12] [#] aiming for ...Ra8.} 38. Kh2 {[%emt 0:01:23]} Qh4 $2 {[%emt 0:02:25][%mdl 8192] A mistake that costs the game.} (38... Ra8 $11 39. Qf3 Qg5) 39. Rf3 $18 {[%emt 0:00:56]} Be6 {[%emt 0:01:20] White must now prevent ...Ra8.} 40. Rf8+ {[%emt 0:01:18]} Kh7 {[%emt 0:00:13]} 41. Bc2 $40 {[%emt 0:32:01][%mdl 128] White wants a kill. Really sharp!} (41. Bc1 $142) 41... Ra7 $2 {[%emt 0:32:09]} (41... Qg5 42. Rf6 Qxg2+ 43. Kxg2 Bg8) 42. Rf6 {[%emt 0:00:00] Intending Qg6+ and mate.} Kh8 {[%emt 0:00:00]} 43. Bxe4 {[%emt 0:00:00] Threatening mate with Rf8+.} dxe4 {[%emt 0:00:00]} 44. Rxe6 {[%emt 0:00:00]} Qf4+ {[%emt 0:00:00]} 45. Kh1 {[%emt 0:00:00]} Ra8 {[%emt 0:00:00]} 46. Rf6 {[%emt 0:00:00]} ({Not} 46. Re7 Rg8 47. Qe2 (47. Rxb7 $2 Rxg2 48. Kxg2 Qd2+ 49. Kg3 e3 $19) 47... Qg5 $19) (46. Rg6 $142 Kh7 47. Rf6 Qg5 48. Qxe4+ Kg7 49. d5 Rf8 50. dxc6 Qh5 51. Qg2+ Qg5 52. Qxg5+ hxg5 53. Rxf8) 46... Qe3 {[%emt 0:00:00]} 47. Qf2 {[%emt 0:00:00]} (47. d5 $142 Qg5 48. e6 Qxg2+ 49. Kxg2 Kh7 50. d6 h5 51. e7 Rg8+ 52. Kh2) 47... Qxh3+ {[%emt 0:00:00]} 48. Qh2 {[%emt 0:00:00]} Qxh2+ {[%emt 0:00:00]} 49. Kxh2 {[%emt 0:00:00] Strongly threatening e6.} Rxa4 {[%emt 0:00:00]} 50. Rxh6+ {[%emt 0:00:00][%mdl 4096] Endgame KRB-KR} (50. e6 $142 Kg7 51. e7) 50... Kg7 {[%emt 0:00:00]} 51. Rh3 {[%emt 0:00:00]} Ra2 {[%emt 0:00:00]} 52. Rb3 {[%emt 0:00:00]} e3 {[%emt 0:00:00]} 53. Kg3 {[%emt 0:00:00]} b5 {[%emt 0:00:00]} 54. Kf3 {[%emt 0:00:00]} (54. e6 $142 Kf6 {[#]} 55. Rxe3 $1) 54... Kf7 {[%emt 0:00:00]} 55. Kxe3 {[%emt 0:00:00]} Ke6 {[%emt 0:00:00]} 56. Ke4 {[%emt 0:00:00]} Ra8 {[%emt 0:00:00]} 57. Rc3 {[%emt 0:00:00]} Rc8 {[%emt 0:00:00]} 58. Ba3 {[%emt 0:00:00] White mates.} Kd7 {[%emt 0:00:00]} 59. Bc5 {[%emt 0:00:00]} Ke6 {[%emt 0:00:00]} 60. Rf3 {[%emt 0:00:00]} Rh8 {[%emt 0:00:00]} 61. Rf6+ {[%emt 0:00:00]} Kd7 {[%emt 0:00:00]} 62. e6+ {[%emt 0:00:00][%cal Be5e6,Be6e7][%mdl 32]} Ke8 {[%emt 0:00:01]} 63. e7 {[%emt 0:00:00]} Rh4+ {[%emt 0:00:44]} 64. Rf4 {[%emt 0:00:00]} Rxf4+ {[%emt 0:00:40]} 65. Kxf4 {[%emt 0:00:00]} Kf7 {[%emt 0:00:09]} 66. Kf5 {[%emt 0:00:00]} Ke8 {[%emt 0:00:08]} 67. Kf6 {[%emt 0:00:00] Weighted Error Value: White=0.52/Black=0.74} 1-0

[Event "44th Chess Olympiad Women 2022"]
[Site "Chennai"]
[Date "2022.08.07"]
[Round "9.57"]
[White "Malehloa, Likhomo"]
[Black "Henderson de La Fuente, Andrea"]
[Result "0-1"]
[ECO "A50"]
[WhiteElo "1322"]
[BlackElo "1962"]
[Annotator "TA"]
[PlyCount "96"]
[EventDate "2022.07.29"]
[EventType "team-tourn"]
[EventCountry "IND"]
[SourceTitle "playchess.com"]
[Source "ChessBase"]
[SourceQuality "1"]
[WhiteTeam "Lesotho"]
[BlackTeam "Andorra"]
[WhiteTeamCountry "LES"]
[BlackTeamCountry "AND"]
[TimeControl "40/5400+30:1800+30"]

{[%evp 9,96,25,28,13,46,12,16,11,27,12,17,-8,-2,-38,-38,-46,-42,-55,-43,-36,-26,-33,-33,-38,-23,-29,-29,-29,-2,-34,-9,-28,0,0,0,0,0,-89,-82,-334,-311,-291,-304,-313,-260,-297,-256,-304,-307,-326,-341,-334,-331,-481,-456,-483,-503,-599,-587,-650,-590,-593,-593,-818,-779,-799,-735,-857,-854,-810,-829,-859,-731,-847,-843,-950,-921,-1676,-1270,-1804,-1491,-2175,-2164,-1962,-1964,-1819,-1776,-7116,-1707]} 1. d4 {[%emt 0:00:15]} Nf6 {[%emt 0:00:07]} 2. Nf3 {[%emt 0:00:11]} b6 {[%emt 0:00:27]} 3. c4 {[%emt 0:01:21]} Bb7 {[%emt 0:00:19]} 4. g3 {[%emt 0:01:16]} g6 {[%emt 0:00:46]} 5. Bg2 {[%emt 0:00:22]} Bg7 {[%emt 0:00:43]} 6. Nc3 {[%emt 0:02:24] A50: Queen's Fianchetto Defence (1 d4 Nf6 2 c4 b6).} d6 {[%emt 0:01:52][%cal Bd7d6,Bd6e5,Be5e4][%mdl 32]} 7. Bf4 {[%emt 0:02:20]} Nbd7 {[%emt 0:01:32][%cal Oe7e5]} 8. O-O {[%emt 0:01:41] The position is equal.} O-O {[%emt 0:06:47]} 9. Qd2 {[%emt 0:06:06]} Re8 {[%emt 0:17:16]} 10. Rfe1 {[%emt 0:07:11] [#]} e5 $146 {[%emt 0:05:29]} ({Predecessor:} 10... Rc8 11. Rad1 e6 12. b4 Qe7 13. a3 Ne4 14. Nxe4 Bxe4 15. Qe3 Bxf3 16. Qxf3 e5 17. dxe5 Nxe5 {1-0 (40) Bogdanic,K (1750)-Schneider,G Malinska 2015}) 11. dxe5 {[%emt 0:01:51]} dxe5 {[%emt 0:00:11]} 12. Bh6 {[%emt 0:01:22]} e4 {[%emt 0:04:04]} 13. Bxg7 {[%emt 0:10:54]} Kxg7 {[%emt 0:02:17]} 14. Nh4 {[%emt 0:01:36]} Ne5 {[%emt 0:16:15][%csl LRc4,LRd2]} 15. Qxd8 {[%emt 0:04:37]} Raxd8 {[%emt 0:00:04]} 16. b3 {[%emt 0:00:25]} Rd2 {[%emt 0:06:24]} 17. Red1 {[%emt 0:02:55]} Red8 {[%emt 0:04:53]} 18. Kf1 {[%emt 0:01:42]} Neg4 {[%emt 0:05:10]} 19. h3 {[%emt 0:02:39] [#] Rxd2 is the strong threat.} Nh6 {[%emt 0:01:27] Threatening ...Rxd1+.} 20. Bh1 {[%emt 0:00:17]} g5 {[%emt 0:00:21]} 21. Ng2 {[%emt 0:00:20]} e3 {[%emt 0:06:05]} 22. Rxd2 {[%emt 0:03:13]} exd2 {[%emt 0:05:22]} 23. Rd1 {[%emt 0:02:41]} (23. f3 $11 {remains equal.}) 23... Be4 $36 {[%emt 0:05:14][%mdl 2048] Black has strong initiative. 0x0.0019ee9ff43adp-1022s more active pieces. The white rooks are badly placed.} 24. f3 $2 {[%emt 0:06:40][%mdl 8192] Loses the game.} (24. Ra1 $17) 24... Bc2 $19 {[%emt 0:00:11]} 25. Ne3 {[%emt 0:00:07]} Bxd1 {[%emt 0:00:05]} 26. Nexd1 {[%emt 0:00:13]} Nf5 {[%emt 0:01:33]} 27. Kf2 {[%emt 0:00:21]} a6 {[%emt 0:02:11][%cal Ob6b5]} 28. e4 {[%emt 0:01:07]} Nd4 {[%emt 0:01:55]} 29. Bg2 {[%emt 0:01:23]} c6 {[%emt 0:01:32] Prevents Nd5.} 30. Nb1 {[%emt 0:00:59]} Nc2 {[%emt 0:00:17]} 31. g4 {[%emt 0:03:09]} (31. e5 $142 Nh5 32. Nbc3) 31... Nb4 {[%emt 0:01:36] Black is clearly winning.} 32. Nbc3 {[%emt 0:01:03]} Nd7 {[%emt 0:01:22]} 33. Ke2 {[%emt 0:01:09]} Ne5 {[%emt 0:00:12]} 34. a3 {[%emt 0:00:26]} Nbd3 {[%emt 0:00:46]} 35. Ke3 {[%emt 0:01:30]} Ne1 {[%emt 0:02:00]} 36. Bh1 {[%emt 0:03:34]} Nc2+ {[%emt 0:00:34]} 37. Ke2 {[%emt 0:00:25]} Nxa3 {[%emt 0:00:34]} 38. Na4 {[%emt 0:00:31]} b5 {[%emt 0:00:32]} 39. cxb5 {[%emt 0:00:12]} axb5 {[%emt 0:00:21]} 40. Nc5 {[%emt 0:00:45]} Nc2 {[%emt 0:00:13] aiming for ...Nd4+.} 41. Bg2 {[%emt 0:33:17]} Nd4+ {[%emt 0:04:21]} 42. Ke3 {[%emt 0:00:00] [#]} Nxb3 $1 {[%emt 0:00:52]} 43. Na6 {[%emt 0:00:00]} (43. Nxb3 Rd3+) 43... Rd3+ {[%emt 0:01:36]} 44. Ke2 {[%emt 0:00:00]} c5 {[%emt 0:00:40][%cal Bc6c5,Bc5c4][%mdl 32]} 45. Nc7 {[%emt 0:00:00]} Nd4+ {[%emt 0:00:22]} 46. Kf2 {[%emt 0:00:00]} c4 {[%emt 0:02:28] ( -> ...c3)} 47. Nd5 {[%emt 0:00:00] Prevents c3.} Rb3 {[%emt 0:00:51]} 48. N5c3 {[%emt 0:00:00]} b4 {[%emt 0:00:17] Weighted Error Value: White=0.72/Black=0.32} 0-1